[Event "45th FIDE Olympiad 2024"]
[Site "Budapest"]
[Date "2024.09.15"]
[Round "5.66"]
[White "Naiditsch, Arkadij"]
[Black "Kjartansson, Gudmundur"]
[Result "0-1"]
[ECO "A15"]
[WhiteElo "2643"]
[BlackElo "2478"]
[Annotator "TA"]
[PlyCount "80"]
[EventDate "2024.09.05"]
[EventType "team-tourn"]
[EventCountry "HUN"]
[SourceTitle "playchess.com"]
[Source "ChessBase"]
[SourceQuality "1"]
[WhiteTeam "Bulgaria"]
[BlackTeam "Iceland"]
[WhiteTeamCountry "BUL"]
[BlackTeamCountry "ISL"]
[TimeControl "40/5400+30:1800+30"]

{[%evp 17,80,10,16,0,0,0,11,0,0,0,10,0,12,0,0,5,11,0,7,-7,0,0,0,0,0,-5,-9,-2,-2,-2,-2,-2,-2,-2,-2,-55,-2,-29,-16,-32,-13,-60,-39,-35,-31,-38,-20,-56,-43,-117,-114,-131,-121,-308,-302,-463,-429,-668,-407,-1320,-1300,-29978,-29979,-29994,-675]} 1. Nf3 Nf6 2. g3 g6 3. c4 c6 4. b3 Bg7 5. Bb2 d6 6. Bg2 e5 7. d3 Nbd7 8. O-O O-O 9. Nc3 Re8 10. Qc2 a6 11. Rac1 Rb8 12. Ne4 {The position is equal.} Nxe4 13. dxe4 a5 14. Bh3 Nc5 15. Bxc8 Qxc8 16. Ba3 b6 17. Rcd1 Bf8 18. e3 Qh3 19. Nd2 {[%cal Bf3d2,Bd2b1,Bb1c3][%mdl 32]} h5 20. Nb1 h4 {[%cal Oa5a4]} 21. Nc3 Be7 22. Qe2 hxg3 23. fxg3 Kg7 24. Qf3 f6 25. Rf2 Rbd8 26. Rdd2 (26. Bxc5 $11 bxc5 27. Rdf1) 26... Rh8 ({Black should try} 26... Ne6 $1 $15) 27. Qd1 Qh5 28. h4 (28. Bxc5 {simplifies} Qxd1+ 29. Rxd1 bxc5 30. Kg2) 28... Kf7 (28... Qxd1+ {simplifies} 29. Rxd1 Rh5 30. Rh2 Rdh8) 29. Rf3 (29. Rh2 $11 {is superior.}) 29... Ke6 (29... Ne6 {simplifies} 30. Rff2 g5 31. Qxh5+ Rxh5 32. Rh2 Rg8) 30. Bxc5 bxc5 31. Rh2 Rdf8 32. Qf1 f5 33. Rhf2 {[#]} (33. Qe2 $15) 33... Qg4 $1 $17 {[%csl LRe4,LRh4] Really sharp!} 34. Qg2 Kd7 {Active counter play!} 35. Kh2 $2 {This costs White the game.} (35. Re2 $17 {was necessary.}) 35... g5 $19 (35... fxe4 36. Rxf8 Rxf8 37. Rxf8 (37. Qxe4 Rxf2+) 37... Bxf8 38. Nxe4 $11 (38. Qxe4 Qxe4 39. Nxe4 d5 $11)) 36. Rxf5 (36. Kg1 {was the only chance.} gxh4 (36... fxe4 37. Rxf8 Bxf8 38. Nxe4 $11) 37. gxh4 Bxh4 38. Re2) 36... gxh4 37. Kg1 (37. Rxf8 $142 hxg3+ (37... Bxf8 38. gxh4 Qxh4+ 39. Kg1 $11) 38. Kg1) 37... hxg3 38. R2f3 {[#]} (38. Rxf8 $142 Rh2 (38... Rxf8 39. Rxf8 Bxf8 40. Qh1 $11) (38... Bxf8 $2 39. Rf3 $19) (38... gxf2+ 39. Rxf2 Qe6 40. Kf1 $11) 39. R8f7 (39. Qf3 $2 gxf2+ 40. Kxh2 Qg1+ 41. Kh3 Bxf8 $19) 39... Rxg2+ 40. Rxg2) 38... Rfg8 $1 {aiming for ...Rh2.} 39. Rf7 Rh2 40. Qxg3 Rc2 {Weighted Error Value: White=0.61/Black=0.18 (very precise) .  Loses game:     	White=1     	---        Mistake:       	White=6     	Black=1      Inaccurate:     	White=3     	Black=1      OK:         	White=9     	Black=12     Best:        	---       	Black=2      Strong:       	---       	Black=1} (40... Qh3 $142 41. Rxe7+ Kxe7 42. Nd5+ cxd5 43. Qxg8 Rh1+ (43... Qxf3 44. Kxh2 d4 45. Qg7+ Kd8 46. Qh6 $17) 44. Kf2 Qf1+ 45. Kg3 Qg1#) 0-1

[Event "45th FIDE Olympiad 2024"]
[Site "Budapest"]
[Date "2024.09.15"]
[Round "5.66"]
[White "Yahi, Mohamed Salem"]
[Black "Dlamini, Simphiwe"]
[Result "0-1"]
[ECO "C50"]
[WhiteElo "1868"]
[BlackElo "1747"]
[PlyCount "96"]
[EventDate "2024.09.05"]
[EventType "team-tourn"]
[EventCountry "HUN"]
[WhiteTeam "Mauritania"]
[BlackTeam "Eswatini"]
[WhiteTeamCountry "MAU"]
[TimeControl "40/5400+30:1800+30"]

1. e4 e5 2. Nf3 Nc6 3. Bc4 Be7 4. d4 d6 5. d5 Nb8 6. h3 f5 7. Nc3 Nf6 8. Bb5+ Nbd7 9. Ng5 O-O 10. Ne6 Qe8 11. Nxc7 Qg6 12. exf5 Qxg2 13. Rf1 Nc5 14. Be3 Bxf5 15. Nxa8 a6 16. Be2 Bxh3 17. Bxc5 dxc5 18. Nc7 Ng4 19. d6 Bh4 20. Qd5+ Qxd5 21. N7xd5 Nxf2 22. Rxf2 Bxf2+ 23. Kd2 b5 24. Rd1 Bd4 25. Ne4 g6 26. c3 Bf2 27. Nxf2 Rxf2 28. Ke3 Rf7 29. c4 b4 30. Bf3 Kf8 31. Nc7 h5 32. Nxa6 Rxf3+ 33. Kxf3 Bg4+ 34. Ke4 Bxd1 35. Nxc5 h4 36. Kxe5 h3 37. Ne4 Bf3 38. Ng3 Ke8 39. Nf1 Be2 40. Ng3 Bxc4 41. Kd4 Bxa2 42. Kc5 b3 43. Kd5 Bb1 44. Ke5 Kd7 45. Kd5 h2 46. Ke5 Bf5 47. Kf4 Kxd6 48. Nh1 Kd5 {0-} 0-1

[Event "45th FIDE Olympiad 2024"]
[Site "Budapest"]
[Date "2024.09.15"]
[Round "5.67"]
[White "Stefansson, Hannes"]
[Black "Petrov, Martin"]
[Result "1/2-1/2"]
[ECO "B90"]
[WhiteElo "2471"]
[BlackElo "2536"]
[Annotator "TA"]
[PlyCount "79"]
[EventDate "2024.09.05"]
[EventType "team-tourn"]
[EventCountry "HUN"]
[SourceTitle "playchess.com"]
[Source "ChessBase"]
[SourceQuality "1"]
[WhiteTeam "Iceland"]
[BlackTeam "Bulgaria"]
[WhiteTeamCountry "ISL"]
[BlackTeamCountry "BUL"]
[TimeControl "40/5400+30:1800+30"]

{[%evp 15,79,8,31,10,8,8,14,8,52,15,18,6,0,8,6,12,23,13,10,10,29,16,26,25,22,25,27,0,0,5,6,0,0,-14,14,0,0,-17,0,0,0,0,0,-15,0,0,0,0,0,0,0,0,0,-25,-31,-55,0,0,0,0,0,0,0,0,0,0]} 1. e4 c5 2. Nf3 d6 3. d4 cxd4 4. Nxd4 Nf6 5. Nc3 a6 6. Be3 e5 7. Nf3 Be7 8. Bc4 Be6 9. Bb3 Nbd7 10. O-O Rc8 11. Ng5 Bxb3 12. cxb3 O-O 13. h3 b5 14. a3 h6 15. Nf3 Nc5 16. Bxc5 Rxc5 17. b4 Rc4 18. Re1 Qd7 19. Qe2 Rfc8 20. Rad1 {[#] And now Nxe5 would win.} Qe6 21. Nh2 Bd8 22. Ng4 Nxg4 23. Qxg4 R8c6 24. Re2 Bb6 (24... Qxg4 {simplifies} 25. hxg4 Bg5 26. Kf1 Rd4) 25. Red2 Rd4 (25... Qxg4 {simplifies} 26. hxg4 Rd4 27. Kf1 Rxd2 28. Rxd2 Bd4) 26. g3 g6 (26... Qxg4 {simplifies} 27. hxg4 Kf8 28. Kf1 Ba7) 27. Kg2 Kg7 28. Qf3 Qb3 29. g4 Rxd2 30. Rxd2 Bd4 31. Ne2 {[%csl LRb3,LRd4]} Qxf3+ 32. Kxf3 $11 {[%mdl 4096] Endgame. KRB-KRN} Bb6 {[%cal Od6d5]} 33. Nc3 Kf6 34. Rd3 Ke6 35. Ke2 Rc4 ({Black should play} 35... Bd4 $15) 36. Rf3 {The position is equal.} Bd8 37. Rd3 Bb6 38. Rf3 Bd8 39. Rd3 Bb6 40. Rf3 {Weighted Error Value: White=0.08 (flawless) /Black=0.07 (flawless) .  Mistake:       	---       	Black=1      Inaccurate:     	White=1     	Black=2      OK:         	White=11    	Black=10} 1/2-1/2

[Event "45th FIDE Olympiad 2024"]
[Site "Budapest"]
[Date "2024.09.15"]
[Round "5.67"]
[White "Mbongeni, Mabuza"]
[Black "Abdellahi, Khaled Abdellahi"]
[Result "1/2-1/2"]
[ECO "D30"]
[WhiteElo "1784"]
[BlackElo "1894"]
[PlyCount "44"]
[EventDate "2024.09.05"]
[EventType "team-tourn"]
[EventCountry "HUN"]
[WhiteTeam "Eswatini"]
[BlackTeam "Mauritania"]
[BlackTeamCountry "MAU"]
[TimeControl "40/5400+30:1800+30"]

1. d4 d5 2. c4 c6 3. Nf3 Nf6 4. e3 e6 5. Bd3 dxc4 6. Bxc4 b5 7. Bd3 Bb7 8. O-O a6 9. b3 Be7 10. Bb2 O-O 11. Nbd2 c5 12. Rc1 Nbd7 13. Bb1 Rc8 14. Qe2 Qb6 15. e4 cxd4 16. e5 Nd5 17. Bxd4 Qa5 18. Ne4 Nf4 19. Qe3 Nd5 20. Qe2 Nf4 21. Qe3 Nd5 22. Qe2 Nf4 1/2-1/2

[Event "45th FIDE Olympiad 2024"]
[Site "Budapest"]
[Date "2024.09.15"]
[Round "5.68"]
[White "Petkov, Momchil"]
[Black "Gretarsson, Helgi Ass"]
[Result "0-1"]
[ECO "D15"]
[WhiteElo "2540"]
[BlackElo "2450"]
[Annotator "TA"]
[PlyCount "102"]
[EventDate "2024.09.05"]
[EventType "team-tourn"]
[EventCountry "HUN"]
[SourceTitle "playchess.com"]
[Source "ChessBase"]
[SourceQuality "1"]
[WhiteTeam "Bulgaria"]
[BlackTeam "Iceland"]
[WhiteTeamCountry "BUL"]
[BlackTeamCountry "ISL"]
[TimeControl "40/5400+30:1800+30"]

{[%evp 20,102,0,0,14,0,-20,-49,-66,-103,0,0,0,0,29,25,26,0,0,0,0,0,0,0,0,0,0,0,0,-9,-11,-41,-38,-33,-41,-90,-106,-114,-69,-69,-69,-81,-81,-115,-96,-116,-122,-214,-88,-100,-88,-459,-466,-537,-543,-543,-538,-628,-634,-5118,-556,-666,-531,-584,-577,-556,-465,-452,-431,-408,-408,-523,-532,-538,-519,-527,-499,-500,-367,-747,-732,-912,-916,-811,-776]} 1. d4 d5 2. c4 c6 3. Nf3 Nf6 4. Nc3 dxc4 5. e4 b5 6. Be2 {D15: Slav Defence: 4 Nc3 a6 and gambit lines after 4 Nc3 dxc4.} e6 7. O-O Bb7 8. Rb1 Qc7 9. a3 Nbd7 $146 ({Predecessor:} 9... a5 10. a4 b4 11. e5 Nfd7 12. Ne4 c5 13. Ned2 cxd4 14. Nxc4 Nc6 15. Bf4 Bc5 {1-0 Aravindh,C (2671)-Srihari,L (2491) Dubai Police op-A 2024 (2)}) 10. b3 cxb3 11. Qxb3 a6 12. Rd1 h6 13. Bd2 c5 $1 14. d5 e5 (14... c4 15. Bxc4 Rc8 16. Bf1 $14 (16. dxe6 Qxc4 17. exd7+ Nxd7 $11)) ({Black should try} 14... exd5 $1 $17 {Strongly threatening ...c4.} 15. exd5 Be7) 15. Bxb5 $11 axb5 16. Nxb5 Qb8 17. d6 $1 Bxd6 18. Nxd6+ (18. Bxh6 {keeps more tension.} Bd5 19. Rxd5 Nxd5 20. Bxg7 Rh7 21. Qxd5 Ra6 22. Nxd6+ Qxd6 23. Qxd6 Rxd6 24. Bxe5 Nxe5 25. Nxe5 f6 26. Ng4) 18... Qxd6 19. Qxb7 Rb8 20. Qxb8+ Nxb8 21. Bc3 Qxd1+ $1 ({But not} 21... Qc7 $2 22. Bxe5 (22. Nxe5 $2 O-O $19) 22... Qa7 23. Rxb8+ $18) 22. Rxd1 Nxe4 23. Bxe5 O-O 24. Nd2 Rd8 25. Rb1 Rxd2 26. Rxb8+ Kh7 27. h3 (27. Rb1 $15) 27... Rxf2 $17 (27... Nxf2 28. Rb2 Rd5 29. Rxf2 $16) 28. Rb1 Rf5 29. Bb2 c4 30. Rc1 Rc5 31. Bd4 Rc6 32. a4 c3 33. Be3 {[#]} (33. a5 $17) 33... Nf6 (33... Rc4 $1 $19 {has better winning chances.} 34. a5 Ra4) 34. a5 Nd5 35. Kf2 $2 {[%mdl 8192] [#]} (35. Bf2 $17) 35... Rf6+ $1 $19 36. Ke2 Re6 37. Kd3 Nxe3 ({Less strong is} 37... Rxe3+ 38. Kd4 $17) 38. Rxc3 Nxg2 39. Kc4 Ne3+ 40. Kb5 Nf5 41. a6 Nd4+ 42. Ka5 Re1 43. Rc4 Ra1+ 44. Kb6 Rb1+ 45. Kc5 Ne6+ 46. Kc6 Rb8 47. a7 Nd8+ 48. Kc5 Ra8 49. Kb6 $2 (49. Ra4) 49... g5 $19 50. Rc5 Kg6 51. Rd5 f6 0-1

[Event "45th FIDE Olympiad 2024"]
[Site "Budapest"]
[Date "2024.09.15"]
[Round "5.68"]
[White "Cheikhna, Mohamed Lemine"]
[Black "Mtsetfwa, Philani"]
[Result "0-1"]
[ECO "C28"]
[WhiteElo "1884"]
[BlackElo "1688"]
[PlyCount "64"]
[EventDate "2024.09.05"]
[EventType "team-tourn"]
[EventCountry "HUN"]
[WhiteTeam "Mauritania"]
[BlackTeam "Eswatini"]
[WhiteTeamCountry "MAU"]
[TimeControl "40/5400+30:1800+30"]

1. e4 e5 2. Nc3 Nc6 3. Bc4 Nf6 4. d3 Be7 5. a3 d6 6. h3 O-O 7. Nge2 Be6 8. O-O d5 9. exd5 Nxd5 10. Nxd5 Bxd5 11. Bxd5 Qxd5 12. Nc3 Qd7 13. Be3 f5 14. f4 exf4 15. Bxf4 Bc5+ 16. Kh1 Rae8 17. Qd2 Nd4 18. Rae1 Rxe1 19. Rxe1 Ne6 20. Be3 Bd6 21. Ne2 f4 22. Bg1 f3 23. Nd4 Nxd4 24. Bxd4 Bg3 25. Rf1 Qxd4 26. gxf3 Qxb2 27. Qg5 Bf4 28. Qd5+ Kh8 29. Qc5 Bd6 30. Qc4 Qe5 31. Rf2 Qg3 32. Qd4 Re8 {0-} 0-1

[Event "45th FIDE Olympiad 2024"]
[Site "Budapest"]
[Date "2024.09.15"]
[Round "5.69"]
[White "Banusz, Tamas"]
[Black "Henriquez Villagra, Cristobal"]
[Result "0-1"]
[ECO "D02"]
[WhiteElo "2605"]
[BlackElo "2604"]
[Annotator "TA"]
[PlyCount "82"]
[EventDate "2024.09.05"]
[EventType "team-tourn"]
[EventCountry "HUN"]
[SourceTitle "playchess.com"]
[Source "ChessBase"]
[SourceQuality "1"]
[WhiteTeam "Hungary B"]
[BlackTeam "Chile"]
[BlackTeamCountry "CHI"]
[TimeControl "40/5400+30:1800+30"]

{[%evp 9,82,7,37,27,28,25,22,14,19,0,27,18,25,0,31,29,34,32,25,0,2,0,36,0,3,-42,-29,-95,-79,-86,-79,-79,-81,-97,-85,-92,-76,-134,-133,-144,-60,-68,-60,-72,-81,-62,-54,-156,-151,-181,-181,-181,-174,-181,-140,-205,-184,-308,-303,-299,-302,-295,-290,-283,-278,-309,-315,-323,-316,-325,-325,-420,-418,-437,-433]} 1. Nf3 d5 2. g3 Nd7 3. d4 Nb6 4. Nc3 Nf6 5. Bg2 g6 6. O-O Bg7 7. a4 a5 8. Re1 {The position is equal.} Ne4 9. Qd3 f5 (9... Bf5 $5) 10. Bf4 c6 11. h4 Nc4 12. b3 Ncd6 13. Ne5 O-O 14. Nxe4 fxe4 15. Qd2 Qb6 16. Rad1 Be6 17. Qc3 Rac8 {...c5 would now be deadly.} 18. Qc5 (18. e3 $11) 18... Qxc5 $17 19. dxc5 {[#]} Nf5 $1 {[%cal Of5h4] Hoping for ...Nxh4!} 20. e3 Nh6 21. c4 Nf7 22. Nxf7 Rxf7 23. f3 (23. cxd5 $142 cxd5 24. Rf1 (24. Rc1 $2 Bg4 $19)) 23... dxc4 24. bxc4 h6 ({Don't take} 24... Bxc4 25. fxe4 Bc3 26. Rf1 $17) (24... exf3 $17 25. Bxf3 Rcf8 (25... Bxc4 26. Be2 $17) (25... Bc3 26. Re2 $17)) 25. fxe4 $15 {[%cal Bf3e4,Be4e5][%mdl 32]} Bg4 ({Don't play} 25... Bxc4 26. e5 $11) 26. e5 $1 Bxd1 27. Rxd1 e6 $1 $36 {[%mdl 2048] White is under pressure.} 28. Be4 {[#]} (28. Rd6 $15) 28... g5 $1 $17 {[%mdl 512]} 29. hxg5 (29. Bg6 Rfc7) 29... hxg5 30. Bxg5 Bxe5 31. Kg2 Rg7 32. Bf4 (32. Bh4 $17 {might work better.}) 32... Bc7 33. Rb1 (33. Bd6 $142) 33... Bxf4 $19 34. exf4 {[%mdl 4096] Endgame. KRR-KRB} Rd8 {Prevents Rd1} 35. Kf3 Rd4 36. Rc1 Rd2 37. Bc2 Rh2 38. Bb1 Rb2 39. Bc2 Kf8 40. g4 Rb4 41. Bd1 Rh7 {Weighted Error Value: White=0.25 (precise) /Black=0.08 (flawless) .  Mistake:       	White=5     	Black=1      Inaccurate:     	White=2     	Black=3      OK:         	White=5     	Black=17     Best:        	White=3     	Black=4      Strong:       	White=1     	Black=2      Brilliant:      	---       	Black=1} 0-1

[Event "45th FIDE Olympiad 2024"]
[Site "Budapest"]
[Date "2024.09.15"]
[Round "5.69"]
[White "Celis, Joel"]
[Black "De Mey, Juan Pablo"]
[Result "0-1"]
[ECO "A06"]
[WhiteElo "1929"]
[BlackElo "1992"]
[PlyCount "101"]
[EventDate "2024.09.05"]
[EventType "team-tourn"]
[EventCountry "HUN"]
[WhiteTeam "Macau"]
[BlackTeam "Aruba"]
[WhiteTeamCountry "MAC"]
[BlackTeamCountry "ARN"]
[TimeControl "40/5400+30:1800+30"]

1. Nf3 Nf6 2. d3 d5 3. Bg5 Nc6 4. Nbd2 Bf5 5. e3 e5 6. d4 exd4 7. exd4 Nb4 8. Bb5+ c6 9. Ba4 b5 10. Bb3 Be7 11. O-O O-O 12. Ne5 Qc7 13. c3 Na6 14. Qf3 Be6 15. a4 bxa4 16. Bxa4 Nb8 17. Nb3 c5 18. Bf4 c4 19. Nd7 Qd8 20. Nxf8 Bg4 21. Qg3 cxb3 22. Nxh7 Kxh7 23. Rfe1 Be6 24. Be5 Nbd7 25. Bc6 Rc8 26. Bb7 Rc4 27. Ba6 Nxe5 28. dxe5 Nd7 29. Bxc4 dxc4 30. Rxa7 Nc5 31. Qf3 g6 32. Rd1 Nd3 33. Qb7 Bc5 34. Ra8 Qb6 35. Qxb6 Bxb6 36. Rd2 Nxe5 37. Rd6 Bc5 38. Rxe6 fxe6 39. Ra4 Kg7 40. Kf1 g5 41. Ke2 Kf6 42. h4 gxh4 43. f4 Nd3 44. Rxc4 Nxb2 45. Rxc5 Na4 46. Rc4 b2 47. Rxa4 b1=Q 48. Rd4 Qc2+ 49. Kf3 Qxc3+ 50. Ke4 Qe1+ 51. Kf3 {0-} 0-1

[Event "45th FIDE Olympiad 2024"]
[Site "Budapest"]
[Date "2024.09.15"]
[Round "5.70"]
[White "Salinas Herrera, Pablo"]
[Black "Prohaszka, Peter"]
[Result "1-0"]
[ECO "C48"]
[WhiteElo "2479"]
[BlackElo "2542"]
[Annotator "TA"]
[PlyCount "139"]
[EventDate "2024.09.05"]
[EventType "team-tourn"]
[EventCountry "HUN"]
[SourceTitle "playchess.com"]
[Source "ChessBase"]
[SourceQuality "1"]
[WhiteTeam "Chile"]
[BlackTeam "Hungary B"]
[WhiteTeamCountry "CHI"]
[TimeControl "40/5400+30:1800+30"]

{[%evp 11,139,0,0,0,0,-11,0,0,0,-1,-4,0,0,0,14,9,14,-14,-5,0,0,-6,25,27,43,14,54,3,48,47,52,56,50,50,63,64,64,56,67,77,95,34,37,43,43,36,72,67,72,69,64,55,55,54,54,54,54,54,71,70,76,65,54,48,104,76,76,76,76,76,76,76,95,95,95,88,88,88,134,65,193,154,181,181,170,105,164,158,156,93,101,0,101,101,107,92,100,100,92,82,124,87,111,109,231,230,550,155,326,326,326,326,326,326,326,283,5781,5513,2621,2403,29982,29983,29983,29984,29984,29985,29985,29986,29985,29986]} 1. e4 e5 2. Nf3 Nc6 3. Nc3 Nf6 4. Bb5 Bc5 5. O-O O-O 6. Bxc6 dxc6 7. d3 Re8 8. Kh1 Bg4 9. h3 {The position is equal.} Bh5 10. Be3 Nd7 11. g4 Bg6 12. Ne2 Bf8 13. Rg1 Nc5 14. Rg3 f6 15. Nh4 Ne6 16. Qd2 Bc5 17. Nf5 Kh8 18. Rag1 Rg8 19. Qc3 (19. f4 $14) 19... Qf8 20. Bxc5 Qxc5 21. Qxc5 Nxc5 22. f4 Ne6 23. fxe5 fxe5 24. Nh4 {White is more active.} Rgf8 25. Nf3 Nf4 26. Nc3 (26. Nxf4 $16 exf4 27. R3g2) 26... Rae8 $14 27. Rf1 {[%cal Of3e5]} Kg8 28. Kh2 Ne6 29. Rgg1 Nd4 30. Nxd4 exd4 31. Ne2 Rxf1 32. Rxf1 {[%mdl 4096] Endgame. KRB-KRN} c5 33. b3 a5 {[%cal Ba7a5,Ba5a4,Ba4a3][%mdl 32]} 34. Kg3 a4 35. h4 {[%cal Bh3h4,Bh4h5][%mdl 32]} b6 36. h5 Bf7 37. Nf4 (37. bxa4 Ra8 $16) 37... h6 (37... g5 $14 38. hxg6 hxg6) 38. Kh4 a3 39. Ne2 (39. g5 hxg5+ 40. Kxg5 Re5+ 41. Kg4 Kh7 $19) 39... Be6 40. Ng3 Kh7 41. Nf5 b5 42. Kg3 Rd8 43. Kf4 Bf7 44. Rd1 Kg8 (44... Rg8 $142) 45. Rd2 (45. Rg1 $16) 45... Rd7 (45... Kh7 $14) 46. Re2 Kf8 47. Rf2 Kg8 48. Ke5 (48. Rg2 $18) 48... Kf8 (48... Rd8 $16) 49. Rg2 $18 Rd8 50. Rd2 (50. Kf4 $142) 50... Kg8 $16 (50... Re8+ 51. Kf4 Kg8 52. Rh2) 51. Kf4 ({White should play} 51. Rh2 $16) 51... Kh7 (51... Rd7 $1 $11 {remains equal.}) 52. Rh2 {White leaves nothing to chance now.} Be6 53. Rf2 (53. Ke5 Re8 54. Kf4 Rf8 $11) 53... Bf7 54. Kg3 {[%cal Of5h6]} Be6 55. Ne7 c4 56. Nc6 {Dodges c5} Rd6 {[#]} 57. Ne5 $1 cxb3 (57... Rd8 $16 {was worth a try.}) 58. cxb3 $18 {Ng6 would now be deadly.} Ra6 $2 (58... Rd8 59. Ng6 Bg8) 59. Rf1 $2 (59. Ng6 $18 {and the rest is easy.}) 59... c5 $2 (59... Kg8 $16 60. Rc1 c6) 60. Ng6 {Hoping for Rf8.} ({Not} 60. Rc1 Ra8 $14) 60... c4 61. Rf8 Bg8 62. bxc4 bxc4 63. dxc4 Ra5 $2 (63... d3 64. Rd8 d2) 64. e5 {[%cal Oe5e6] Intending e6! and mate.} d3 {[%cal Bd4d3,Bd3d2][%mdl 32]} 65. Rd8 {Threatening mate with e6.} Rd5 {[#]} 66. Rxg8 $1 {White mates.} ({Inferior is} 66. cxd5 d2 $11) 66... Kxg8 67. Ne7+ (67. cxd5 $2 {loses.} d2 68. Ne7+ Kf8 $19 (68... Kh7 $2 69. Kf4 $19)) 67... Kf7 68. Nxd5 d2 69. Nc3 Ke6 70. Kf4 {Weighted Error Value: White=0.25 (precise) /Black=0.27 (precise) .  Loses game:     	---       	Black=1      Missed win:     	White=1     	---        Mistake:       	White=6     	Black=8      Inaccurate:     	White=2     	Black=5      OK:         	White=21    	Black=18     Best:        	White=2     	Black=3      Strong:       	White=1     	---} 1-0

[Event "45th FIDE Olympiad 2024"]
[Site "Budapest"]
[Date "2024.09.15"]
[Round "5.70"]
[White "Stetsenko, Ilya"]
[Black "Mak, Tong Kuan"]
[Result "0-1"]
[ECO "B10"]
[WhiteElo "1903"]
[BlackElo "1902"]
[PlyCount "74"]
[EventDate "2024.09.05"]
[EventType "team-tourn"]
[EventCountry "HUN"]
[WhiteTeam "Aruba"]
[BlackTeam "Macau"]
[WhiteTeamCountry "ARN"]
[BlackTeamCountry "MAC"]
[TimeControl "40/5400+30:1800+30"]

1. e4 c6 2. Nf3 d5 3. d3 dxe4 4. dxe4 Qxd1+ 5. Kxd1 b6 6. Be3 Nf6 7. Bd3 Ng4 8. Ke2 Nxe3 9. Kxe3 g6 10. Nbd2 Bg7 11. c3 Na6 12. Nd4 Bh6+ 13. Ke2 Nc5 14. Rhd1 Nxd3 15. Kxd3 Ba6+ 16. Kc2 c5 17. N4f3 f6 18. e5 Kf7 19. exf6 exf6 20. Ne4 Rad8 21. a4 Be2 22. Nd6+ Kg7 23. Rd5 Bf4 24. Re1 Bxf3 25. Re7+ Kf8 26. Rf7+ Kg8 27. gxf3 Rxd6 28. Rxd6 Bxd6 29. Rxa7 Bxh2 30. Rb7 h5 31. Rxb6 Kg7 32. a5 Ra8 33. a6 h4 34. Rb7+ Kh6 35. a7 Bg1 36. b4 cxb4 37. Rb8 Rxa7 {0-} 0-1

[Event "45th FIDE Olympiad 2024"]
[Site "Budapest"]
[Date "2024.09.15"]
[Round "5.71"]
[White "Antal, Gergely"]
[Black "Vasquez Schroeder, Rodrigo"]
[Result "1/2-1/2"]
[ECO "B51"]
[WhiteElo "2544"]
[BlackElo "2457"]
[Annotator "TA"]
[PlyCount "139"]
[EventDate "2024.09.05"]
[EventType "team-tourn"]
[EventCountry "HUN"]
[SourceTitle "playchess.com"]
[Source "ChessBase"]
[SourceQuality "1"]
[WhiteTeam "Hungary B"]
[BlackTeam "Chile"]
[BlackTeamCountry "CHI"]
[TimeControl "40/5400+30:1800+30"]

{[%evp 71,139,-20,-13,-18,-6,-87,-81,-106,-81,-111,-104,-111,-116,-114,-115,-108,-112,-183,-127,-128,-121,-126,-125,-315,-328,-314,-308,-339,-334,-354,-351,-449,-447,-475,-481,-554,-368,-1850,-139,-385,-381,-358,-187,-213,-196,-213,-217,-542,-96,-5065,-28,-27,-8,-8,-8,-8,-8,-8,-8,-8,-8,-8,-8,-8,-8,-8,-8,-8,-8,-8]} 1. e4 c5 2. Nf3 d6 3. Bb5+ Nd7 4. O-O a6 5. Be2 Ngf6 6. d3 {B51: Sicilian: Moscow Variation (3 Bb5+) without 3...Bd7.} g6 7. c4 Bg7 8. Nc3 O-O 9. d4 cxd4 10. Nxd4 e6 11. Be3 Qc7 12. Rc1 b6 13. f3 Bb7 14. b4 Rac8 15. Nb3 Qb8 $146 ({Predecessor:} 15... Rfe8 16. Qd2 Qb8 17. Rfd1 Bf8 18. a3 h5 19. Bf1 Be7 20. Qf2 Bd8 {½-½ Jimenez Villena,F-Paunovic,D (2455) Ibercaja op Zaragoza 1991 (5)}) 16. Qe1 d5 17. exd5 exd5 18. c5 Rfe8 19. Qf2 bxc5 20. bxc5 Qc7 21. Bd4 Re6 22. Rfd1 Rce8 23. Bf1 Bh6 24. Rc2 Ne5 25. g3 Nc4 26. Re2 Rxe2 27. Bxe2 Qe7 28. Bxc4 dxc4 29. Na5 Ba8 30. Nxc4 Ng4 31. Qf1 Ne3 32. Nxe3 Bxe3+ 33. Kg2 Bxd4 34. Rxd4 Qe3 35. Rd3 Qxc5 36. Qd1 Kg7 37. Qd2 Qe5 38. Qf2 {[#]} (38. Kf2 $11) 38... g5 $1 $17 39. h3 h5 40. Qd4 Qxd4 41. Rxd4 Re3 42. Ne4 {[#]} g4 $1 43. hxg4 hxg4 44. Nd2 (44. Nd6 $17 Bxf3+ (44... gxf3+ 45. Kf1 $17) 45. Kf1) 44... Re2+ (44... gxf3+ $19 45. Kf1 Ra3 46. Rg4+ Kf6 47. Rf4+ Ke6) 45. Kf1 $17 gxf3 (45... Bxf3 46. Nxf3 gxf3 47. Ra4 $11) 46. Rd3 Rg2 47. a3 $2 (47. Nxf3 $17 Rxa2 (47... Rxg3 $2 48. Ne5 $19) 48. Ne5) 47... Bc6 $19 (47... Rxg3 48. a4 $19) 48. a4 Rxg3 (48... Bxa4 49. Nxf3 Rxg3 50. Kf2 $17) 49. Rd4 Rg6 50. Kf2 Kf8 (50... Rg2+ 51. Ke3 $17) 51. Kf1 Ke7 52. Rf4 Ke6 53. Nb3 Rg5 54. Kf2 $2 (54. Rb4 Ba8 55. Rh4) 54... f6 $2 (54... Ke5 $19 55. Rxf7 Rg2+ (55... Bxa4 56. Rxf3 Bxb3 57. Rxb3 $11) 56. Ke1 Re2+ (56... Bxa4 57. Rxf3 Bb5 58. Re3+ Kd5 59. Kd1 $11) 57. Kf1 Bd5 (57... Bxa4 58. Rxf3 Bb5 59. Kg1 $15)) 55. Ke3 $2 (55. Nd4+ $17 {only move.} Ke5 56. Rh4 (56. Ke3 $2 Bd5 $19) 56... Rg2+ (56... Bxa4 $2 {perishes.} 57. Nxf3+ Kd5 58. Nxg5 $18) 57. Ke3) 55... Kf7 (55... Re5+ $2 56. Kd3 $19) 56. Nd4 Bxa4 (56... Bd5 $142 {aiming for ...Rg2.} 57. Kf2 Kg6) 57. Nxf3 $19 Ra5 58. Nd2 Re5+ 59. Ne4 $2 (59. Kd4 Bc6 60. Nb3) 59... Ke7 $2 (59... f5 $19 {has better winning chances.} 60. Kd3 Bb5+ (60... Rxe4 61. Rxf5+ Ke6 62. Ra5 $15) 61. Kc3 Rxe4 62. Rxf5+ Ke6) 60. Rxf6 $2 {[%mdl 8192]} (60. Kd4 $17) 60... Bc2 $2 (60... Rxe4+ $1 $19 61. Kxe4 Kxf6) 61. Rf4 $1 $11 Rd5 62. Rf2 Bb3 63. Rd2 Ra5 64. Kd4 Bd5 65. Nc5 Kd6 66. Rh2 Bc6 (66... Rxc5 $5 67. Rh6+ $8 Be6 68. Rxe6+ Kxe6 69. Kxc5 Kf7 $11) 67. Rh6+ Kc7 68. Rh7+ Kb6 69. Nd7+ Bxd7 70. Rxd7 1/2-1/2